[Event "Titled Tuesday Blitz May 23 Early 2023"]
[White "Saim, Mohamed Ilias"]
[Black "Rose, Felix"]
[WhiteFideId "7900465"]
[BlackFideId "5105722"]
[WhiteElo "2063"]
[BlackElo "2039"]
[Result "0-1"]
[Round "08"]
[TimeControl "180+2"]
[Date "2023.05.23"]
[WhiteClock "0:01:59"]
[BlackClock "0:02:09"]

1. c4 {[%clk 0:03:00]}  e6 {[%clk 0:02:58]} 2. g3 {[%clk 0:02:59]}  d5 {[%clk 0:02:59]} 3. Bg2 {[%clk 0:03:00]}  Nf6 {[%clk 0:02:59]} 4. d4 {[%clk 0:03:00]}  dxc4 {[%clk 0:02:56]} 5. Qa4+ {[%clk 0:02:59]}  Nbd7 {[%clk 0:02:56]} 6. Qxc4 {[%clk 0:02:59]}  a6 {[%clk 0:02:56]} 7. a4 {[%clk 0:02:58]}  b5 {[%clk 0:02:51]} 8. axb5 {[%clk 0:02:57]}  axb5 {[%clk 0:02:51]} 9. Rxa8 {[%clk 0:02:41]}  bxc4 {[%clk 0:02:51]} 10. Bg5 {[%clk 0:02:33]}  Nb6 {[%clk 0:02:47]} 11. Rb8 {[%clk 0:02:29]}  Bb4+ {[%clk 0:02:45]} 12. Nc3 {[%clk 0:02:29]}  O-O {[%clk 0:02:42]} 13. Nf3 {[%clk 0:02:23]}  h6 {[%clk 0:02:40]} 14. Bf4 {[%clk 0:02:20]}  Nfd5 {[%clk 0:02:36]} 15. Bd2 {[%clk 0:02:18]}  c5 {[%clk 0:02:18]} 16. dxc5 {[%clk 0:02:13]}  Bxc5 {[%clk 0:02:11]} 17. O-O {[%clk 0:02:13]}  Qc7 {[%clk 0:02:11]} 18. Rxc8 {[%clk 0:01:59]}  Rxc8 {[%clk 0:02:09]} 0-1


[Site "https://www.chess.com"]

[Event "Titled Tuesday Blitz May 23 Early 2023"]
[White "Butolo, Alexandru-Mircea"]
[Black "mohsengabr2002"]
[WhiteFideId "1261649"]
[WhiteElo "1850"]
[BlackElo "2289"]
[Result "0-1"]
[Round "08"]
[TimeControl "180+2"]
[Date "2023.05.23"]
[WhiteClock "0:00:00"]
[BlackClock "0:00:13"]

1. e4 {[%clk 0:03:00]}  c5 {[%clk 0:01:26]} 2. Nf3 {[%clk 0:02:59]}  d6 {[%clk 0:01:25]} 3. d4 {[%clk 0:02:59]}  cxd4 {[%clk 0:01:26]} 4. Nxd4 {[%clk 0:03:00]}  a6 {[%clk 0:01:26]} 5. Nc3 {[%clk 0:02:52]}  e5 {[%clk 0:01:26]} 6. Nf5 {[%clk 0:02:45]}  Bxf5 {[%clk 0:01:25]} 7. exf5 {[%clk 0:02:46]}  Nf6 {[%clk 0:01:25]} 8. Bc4 {[%clk 0:02:44]}  Qc7 {[%clk 0:01:25]} 9. Qe2 {[%clk 0:02:37]}  h6 {[%clk 0:01:23]} 10. O-O {[%clk 0:02:34]}  Be7 {[%clk 0:01:22]} 11. f4 {[%clk 0:02:21]}  Nbd7 {[%clk 0:01:20]} 12. Bb3 {[%clk 0:02:13]}  O-O {[%clk 0:01:19]} 13. Kh1 {[%clk 0:02:10]}  b5 {[%clk 0:01:14]} 14. a3 {[%clk 0:01:53]}  Rae8 {[%clk 0:01:03]} 15. Be3 {[%clk 0:01:45]}  exf4 {[%clk 0:01:01]} 16. Bxf4 {[%clk 0:01:45]}  Ne5 {[%clk 0:01:00]} 17. Rae1 {[%clk 0:01:37]}  Bd8 {[%clk 0:00:56]} 18. Qd1 {[%clk 0:01:33]}  Be7 {[%clk 0:00:48]} 19. Nd5 {[%clk 0:01:29]}  Nxd5 {[%clk 0:00:48]} 20. Qxd5 {[%clk 0:01:29]}  Bf6 {[%clk 0:00:46]} 21. Re3 {[%clk 0:01:11]}  Rd8 {[%clk 0:00:41]} 22. Rc3 {[%clk 0:01:03]}  Qb6 {[%clk 0:00:41]} 23. Rg3 {[%clk 0:01:01]}  Kh7 {[%clk 0:00:38]} 24. h3 {[%clk 0:00:47]}  Qc5 {[%clk 0:00:37]} 25. Qd2 {[%clk 0:00:42]}  Nc4 {[%clk 0:00:34]} 26. Bxc4 {[%clk 0:00:41]}  Qxc4 {[%clk 0:00:33]} 27. Rd3 {[%clk 0:00:38]}  d5 {[%clk 0:00:30]} 28. b3 {[%clk 0:00:37]}  Qc5 {[%clk 0:00:28]} 29. Rd1 {[%clk 0:00:11]}  d4 {[%clk 0:00:28]} 30. b4 {[%clk 0:00:10]}  Qxf5 {[%clk 0:00:27]} 31. Rf3 {[%clk 0:00:08]}  Qe4 {[%clk 0:00:20]} 32. Bxh6 {[%clk 0:00:07]}  Rc8 {[%clk 0:00:18]} 33. Rf4 {[%clk 0:00:06]}  Qxc2 {[%clk 0:00:17]} 34. Qe1 {[%clk 0:00:00]}  Qc3 {[%clk 0:00:13]} 0-1


[Site "https://www.chess.com"]

[Event "Titled Tuesday Blitz May 23 Early 2023"]
[White "Brueckner, Thomas"]
[Black "Semenova, Alina"]
[WhiteFideId "4600452"]
[BlackFideId "24113875"]
[WhiteElo "2322"]
[BlackElo "1833"]
[Result "1-0"]
[Round "08"]
[TimeControl "180+2"]
[Date "2023.05.23"]
[WhiteClock "0:01:59"]
[BlackClock "0:01:06"]

1. e4 {[%clk 0:03:00]}  c5 {[%clk 0:01:59]} 2. Nf3 {[%clk 0:02:59]}  Nc6 {[%clk 0:01:59]} 3. d4 {[%clk 0:02:58]}  cxd4 {[%clk 0:01:59]} 4. Nxd4 {[%clk 0:02:59]}  Nf6 {[%clk 0:02:00]} 5. Nc3 {[%clk 0:02:59]}  g6 {[%clk 0:02:00]} 6. Nxc6 {[%clk 0:02:48]}  bxc6 {[%clk 0:02:00]} 7. e5 {[%clk 0:02:44]}  Ng8 {[%clk 0:01:59]} 8. Bc4 {[%clk 0:02:37]}  Bg7 {[%clk 0:01:58]} 9. Qe2 {[%clk 0:02:34]}  Qa5 {[%clk 0:01:57]} 10. Bf4 {[%clk 0:02:30]}  f6 {[%clk 0:01:53]} 11. exf6 {[%clk 0:02:25]}  Nxf6 {[%clk 0:01:51]} 12. O-O-O {[%clk 0:02:22]}  d5 {[%clk 0:01:49]} 13. Bb3 {[%clk 0:02:17]}  Ba6 {[%clk 0:01:43]} 14. Qe6 {[%clk 0:02:14]}  Qb6 {[%clk 0:01:12]} 15. Rhe1 {[%clk 0:02:07]}  Ne4 {[%clk 0:01:06]} 16. Nxe4 {[%clk 0:02:00]}  dxe4 {[%clk 0:01:06]} 17. Qf7# {[%clk 0:01:59]} 1-0


[Site "https://www.chess.com"]

[Event "Titled Tuesday Blitz May 23 Early 2023"]
[White "chessjazda"]
[Black "Blackwhite017"]
[WhiteElo "2285"]
[BlackElo "2076"]
[Result "0-1"]
[Round "08"]
[TimeControl "180+2"]
[Date "2023.05.23"]
[WhiteClock "0:01:52"]
[BlackClock "0:00:56"]

1. f4 {[%clk 0:02:53]}  d5 {[%clk 0:02:58]} 2. Nf3 {[%clk 0:02:53]}  g6 {[%clk 0:02:52]} 3. d4 {[%clk 0:02:52]}  Bg7 {[%clk 0:02:51]} 4. b3 {[%clk 0:02:53]}  e6 {[%clk 0:02:50]} 5. Bb2 {[%clk 0:02:53]}  Ne7 {[%clk 0:02:50]} 6. e3 {[%clk 0:02:53]}  c5 {[%clk 0:02:49]} 7. Ne5 {[%clk 0:02:49]}  cxd4 {[%clk 0:02:37]} 8. exd4 {[%clk 0:02:47]}  Nbc6 {[%clk 0:02:36]} 9. Be2 {[%clk 0:02:41]}  Nf5 {[%clk 0:02:16]} 10. Nxc6 {[%clk 0:02:33]}  bxc6 {[%clk 0:02:14]} 11. O-O {[%clk 0:02:32]}  Ne3 {[%clk 0:02:11]} 12. Qd2 {[%clk 0:02:25]}  Nxf1 {[%clk 0:02:08]} 13. Bxf1 {[%clk 0:02:25]}  Qb6 {[%clk 0:02:03]} 14. c4 {[%clk 0:02:23]}  Ba6 {[%clk 0:01:58]} 15. c5 {[%clk 0:02:22]}  Qb7 {[%clk 0:01:57]} 16. Nc3 {[%clk 0:02:21]}  Bxf1 {[%clk 0:01:54]} 17. Rxf1 {[%clk 0:02:20]}  O-O {[%clk 0:01:46]} 18. Nd1 {[%clk 0:02:14]}  Rae8 {[%clk 0:01:38]} 19. Bc3 {[%clk 0:02:13]}  f6 {[%clk 0:01:32]} 20. Nf2 {[%clk 0:02:10]}  e5 {[%clk 0:01:31]} 21. fxe5 {[%clk 0:02:08]}  fxe5 {[%clk 0:01:32]} 22. dxe5 {[%clk 0:02:08]}  Bxe5 {[%clk 0:01:32]} 23. Nd3 {[%clk 0:02:06]}  Rxf1+ {[%clk 0:01:18]} 24. Kxf1 {[%clk 0:02:06]}  Qf7+ {[%clk 0:01:17]} 25. Kg1 {[%clk 0:02:05]}  Bxc3 {[%clk 0:01:16]} 26. Qxc3 {[%clk 0:02:05]}  Qg7 {[%clk 0:01:01]} 27. Qd2 {[%clk 0:01:57]}  Qd4+ {[%clk 0:01:00]} 28. Kf1 {[%clk 0:01:52]}  Re3 {[%clk 0:00:56]} 0-1


[Site "https://www.chess.com"]

[Event "Titled Tuesday Blitz May 23 Early 2023"]
[White "Nithyalakshmi, Sivanesan"]
[Black "Singgih, Diajeng Theresa"]
[WhiteFideId "5706955"]
[BlackFideId "7104391"]
[WhiteElo "1815"]
[BlackElo "1891"]
[Result "1-0"]
[Round "08"]
[TimeControl "180+2"]
[Date "2023.05.23"]
[WhiteClock "0:00:21"]
[BlackClock "0:00:10"]

1. e4 {[%clk 0:03:00]}  e5 {[%clk 0:02:19]} 2. Nf3 {[%clk 0:02:55]}  Nc6 {[%clk 0:02:10]} 3. d4 {[%clk 0:02:55]}  exd4 {[%clk 0:02:10]} 4. Nxd4 {[%clk 0:02:56]}  Nxd4 {[%clk 0:02:09]} 5. Qxd4 {[%clk 0:02:54]}  d6 {[%clk 0:01:56]} 6. Nc3 {[%clk 0:02:51]}  Nf6 {[%clk 0:01:39]} 7. Bg5 {[%clk 0:02:49]}  Be7 {[%clk 0:01:35]} 8. O-O-O {[%clk 0:02:47]}  O-O {[%clk 0:01:35]} 9. f3 {[%clk 0:02:45]}  Re8 {[%clk 0:01:34]} 10. h4 {[%clk 0:02:38]}  Nh5 {[%clk 0:01:30]} 11. Bxe7 {[%clk 0:02:13]}  Qxe7 {[%clk 0:01:30]} 12. Qf2 {[%clk 0:02:02]}  Qe5 {[%clk 0:01:25]} 13. Bc4 {[%clk 0:01:55]}  Be6 {[%clk 0:01:23]} 14. Bb5 {[%clk 0:01:51]}  c6 {[%clk 0:01:21]} 15. Bf1 {[%clk 0:01:29]}  Ng3 {[%clk 0:01:15]} 16. f4 {[%clk 0:01:27]}  Qa5 {[%clk 0:01:07]} 17. Qxg3 {[%clk 0:01:24]}  Bxa2 {[%clk 0:01:02]} 18. Nxa2 {[%clk 0:01:22]}  Qxa2 {[%clk 0:01:02]} 19. Qa3 {[%clk 0:01:20]}  Qe6 {[%clk 0:00:55]} 20. Bd3 {[%clk 0:01:18]}  d5 {[%clk 0:00:50]} 21. e5 {[%clk 0:01:13]}  b6 {[%clk 0:00:42]} 22. Rde1 {[%clk 0:01:08]}  c5 {[%clk 0:00:38]} 23. f5 {[%clk 0:01:04]}  Qh6+ {[%clk 0:00:37]} 24. Kb1 {[%clk 0:01:01]}  c4 {[%clk 0:00:36]} 25. Bf1 {[%clk 0:00:59]}  Qf4 {[%clk 0:00:30]} 26. f6 {[%clk 0:00:54]}  gxf6 {[%clk 0:00:22]} 27. Qf3 {[%clk 0:00:45]}  fxe5 {[%clk 0:00:20]} 28. Qxd5 {[%clk 0:00:33]}  Rad8 {[%clk 0:00:16]} 29. Qxc4 {[%clk 0:00:31]}  Qf2 {[%clk 0:00:14]} 30. Bd3 {[%clk 0:00:22]}  e4 {[%clk 0:00:11]} 31. Rxe4 {[%clk 0:00:21]}  Rxe4 {[%clk 0:00:11]} 32. Qxe4 {[%clk 0:00:21]}  Kh8 {[%clk 0:00:10]} 33. Qxh7# {[%clk 0:00:21]} 1-0


[Site "https://www.chess.com"]

[Event "Titled Tuesday Blitz May 23 Early 2023"]
[White "Clawitter, Craig"]
[Black "Shapiro, Viktor"]
[WhiteFideId "2023105"]
[BlackFideId "4175700"]
[WhiteElo "2227"]
[BlackElo "2152"]
[Result "0-1"]
[Round "08"]
[TimeControl "180+2"]
[Date "2023.05.23"]
[WhiteClock "0:00:01"]
[BlackClock "0:01:19"]

1. e4 {[%clk 0:02:57]}  c5 {[%clk 0:03:00]} 2. Nf3 {[%clk 0:02:56]}  Nc6 {[%clk 0:03:00]} 3. d4 {[%clk 0:02:57]}  cxd4 {[%clk 0:03:00]} 4. Nxd4 {[%clk 0:02:58]}  Nf6 {[%clk 0:03:00]} 5. Nc3 {[%clk 0:02:58]}  e5 {[%clk 0:03:01]} 6. Ndb5 {[%clk 0:02:59]}  d6 {[%clk 0:03:00]} 7. Bg5 {[%clk 0:02:59]}  a6 {[%clk 0:03:01]} 8. Na3 {[%clk 0:02:59]}  b5 {[%clk 0:03:01]} 9. Bxf6 {[%clk 0:02:59]}  gxf6 {[%clk 0:03:01]} 10. Nd5 {[%clk 0:03:00]}  f5 {[%clk 0:02:57]} 11. Bd3 {[%clk 0:02:59]}  Be6 {[%clk 0:02:52]} 12. O-O {[%clk 0:03:00]}  Bg7 {[%clk 0:02:52]} 13. Qh5 {[%clk 0:02:59]}  f4 {[%clk 0:02:42]} 14. c4 {[%clk 0:02:58]}  b4 {[%clk 0:02:42]} 15. Nc2 {[%clk 0:02:58]}  Rb8 {[%clk 0:02:42]} 16. Kh1 {[%clk 0:02:54]}  h6 {[%clk 0:02:39]} 17. g3 {[%clk 0:02:51]}  Qg5 {[%clk 0:02:38]} 18. Qe2 {[%clk 0:02:16]}  a5 {[%clk 0:02:29]} 19. Rg1 {[%clk 0:01:37]}  f3 {[%clk 0:02:07]} 20. Nc7+ {[%clk 0:01:20]}  Kd7 {[%clk 0:02:05]} 21. Nxe6 {[%clk 0:01:21]}  fxe6 {[%clk 0:02:04]} 22. Qxf3 {[%clk 0:01:21]}  Rbf8 {[%clk 0:02:03]} 23. Qe2 {[%clk 0:01:07]}  h5 {[%clk 0:02:01]} 24. h4 {[%clk 0:01:03]}  Qg4 {[%clk 0:01:58]} 25. Qxg4 {[%clk 0:01:00]}  hxg4 {[%clk 0:01:58]} 26. Kg2 {[%clk 0:01:01]}  Bh6 {[%clk 0:01:57]} 27. Rgf1 {[%clk 0:00:56]}  Rf6 {[%clk 0:01:55]} 28. f3 {[%clk 0:00:56]}  gxf3+ {[%clk 0:01:52]} 29. Rxf3 {[%clk 0:00:57]}  Rxf3 {[%clk 0:01:51]} 30. Kxf3 {[%clk 0:00:58]}  Rf8+ {[%clk 0:01:52]} 31. Kg2 {[%clk 0:00:56]}  Rg8 {[%clk 0:01:44]} 32. Rf1 {[%clk 0:00:53]}  Ke7 {[%clk 0:01:44]} 33. Rf3 {[%clk 0:00:45]}  a4 {[%clk 0:01:38]} 34. Kh3 {[%clk 0:00:36]}  b3 {[%clk 0:01:35]} 35. axb3 {[%clk 0:00:36]}  axb3 {[%clk 0:01:35]} 36. Ne1 {[%clk 0:00:29]}  Nd4 {[%clk 0:01:35]} 37. Rf2 {[%clk 0:00:26]}  Be3 {[%clk 0:01:35]} 38. Rg2 {[%clk 0:00:21]}  Rf8 {[%clk 0:01:22]} 39. g4 {[%clk 0:00:17]}  Bf2 {[%clk 0:01:22]} 40. Rxf2 {[%clk 0:00:08]}  Rxf2 {[%clk 0:01:21]} 41. g5 {[%clk 0:00:08]}  Rxb2 {[%clk 0:01:21]} 42. h5 {[%clk 0:00:06]}  Rd2 {[%clk 0:01:19]} 43. g6 {[%clk 0:00:04]}  Kf6 {[%clk 0:01:19]} 44. Kg4 {[%clk 0:00:04]}  b2 {[%clk 0:01:19]} 45. Bb1 {[%clk 0:00:01]}  Rd1 {[%clk 0:01:19]} 0-1


[Site "https://www.chess.com"]

[Event "Titled Tuesday Blitz May 23 Early 2023"]
[White "dDobravcan"]
[Black "Afanasieva, Alexandra"]
[BlackFideId "34126926"]
[WhiteElo "2124"]
[BlackElo "1745"]
[Result "0-1"]
[Round "08"]
[TimeControl "180+2"]
[Date "2023.05.23"]
[WhiteClock "0:00:00"]
[BlackClock "0:00:40"]

1. d4 {[%clk 0:03:00]}  Nf6 {[%clk 0:02:52]} 2. Nc3 {[%clk 0:02:59]}  e6 {[%clk 0:02:52]} 3. Bf4 {[%clk 0:02:58]}  Bb4 {[%clk 0:02:51]} 4. e3 {[%clk 0:02:49]}  d5 {[%clk 0:02:51]} 5. Bd3 {[%clk 0:02:44]}  b6 {[%clk 0:02:50]} 6. Ne2 {[%clk 0:02:41]}  Nbd7 {[%clk 0:02:49]} 7. a3 {[%clk 0:02:40]}  Bxc3+ {[%clk 0:02:48]} 8. Nxc3 {[%clk 0:02:39]}  c5 {[%clk 0:02:49]} 9. g4 {[%clk 0:02:29]}  cxd4 {[%clk 0:02:44]} 10. exd4 {[%clk 0:02:28]}  Bb7 {[%clk 0:02:36]} 11. Qe2 {[%clk 0:02:26]}  a6 {[%clk 0:02:09]} 12. g5 {[%clk 0:02:23]}  Ng8 {[%clk 0:02:05]} 13. h4 {[%clk 0:02:11]}  Ne7 {[%clk 0:02:03]} 14. h5 {[%clk 0:02:09]}  Nc6 {[%clk 0:01:58]} 15. Qe3 {[%clk 0:01:40]}  Qe7 {[%clk 0:01:46]} 16. O-O-O {[%clk 0:01:35]}  O-O-O {[%clk 0:01:45]} 17. Na4 {[%clk 0:01:27]}  b5 {[%clk 0:01:42]} 18. Nc3 {[%clk 0:01:00]}  b4 {[%clk 0:01:42]} 19. axb4 {[%clk 0:00:56]}  Qxb4 {[%clk 0:01:43]} 20. g6 {[%clk 0:00:47]}  hxg6 {[%clk 0:01:35]} 21. hxg6 {[%clk 0:00:45]}  f6 {[%clk 0:01:25]} 22. Rxh8 {[%clk 0:00:33]}  Rxh8 {[%clk 0:01:25]} 23. Qxe6 {[%clk 0:00:34]}  Nxd4 {[%clk 0:01:25]} 24. Qf7 {[%clk 0:00:24]}  Qf8 {[%clk 0:01:07]} 25. Bf5 {[%clk 0:00:18]}  Nxf5 {[%clk 0:01:03]} 26. Nxd5 {[%clk 0:00:13]}  Qxf7 {[%clk 0:00:59]} 27. gxf7 {[%clk 0:00:13]}  Bxd5 {[%clk 0:00:57]} 28. Rxd5 {[%clk 0:00:12]}  Ne7 {[%clk 0:00:55]} 29. Rd6 {[%clk 0:00:12]}  Rf8 {[%clk 0:00:53]} 30. Rxa6 {[%clk 0:00:11]}  Rxf7 {[%clk 0:00:52]} 31. b4 {[%clk 0:00:09]}  Nd5 {[%clk 0:00:50]} 32. Bd2 {[%clk 0:00:08]}  Ne5 {[%clk 0:00:48]} 33. c3 {[%clk 0:00:05]}  Rc7 {[%clk 0:00:47]} 34. Kb2 {[%clk 0:00:04]}  Nc4+ {[%clk 0:00:46]} 35. Kc2 {[%clk 0:00:04]}  Nxd2 {[%clk 0:00:47]} 36. Kxd2 {[%clk 0:00:05]}  Nxc3 {[%clk 0:00:47]} 37. Ra8+ {[%clk 0:00:03]}  Kd7 {[%clk 0:00:47]} 38. Rg8 {[%clk 0:00:02]}  Ne4+ {[%clk 0:00:46]} 39. Ke3 {[%clk 0:00:01]}  Ng5 {[%clk 0:00:39]} 40. Rxg7+ {[%clk 0:00:01]}  Kd6 {[%clk 0:00:40]} 41. Rxc7 {[%clk 0:00:01]}  Kxc7 {[%clk 0:00:41]} 42. Kf4 {[%clk 0:00:00]}  Kd6 {[%clk 0:00:40]} 0-1


[Site "https://www.chess.com"]

[Event "Titled Tuesday Blitz May 23 Early 2023"]
[White "Pg, Mohd Omar Ak Hira"]
[Black "Lohani, Sujana"]
[WhiteFideId "10500103"]
[BlackFideId "12311987"]
[WhiteElo "2167"]
[BlackElo "1718"]
[Result "1-0"]
[Round "08"]
[TimeControl "180+2"]
[Date "2023.05.23"]
[WhiteClock "0:01:26"]
[BlackClock "0:00:14"]

1. e4 {[%clk 0:03:00]}  c6 {[%clk 0:03:00]} 2. Nf3 {[%clk 0:03:00]}  d5 {[%clk 0:03:00]} 3. exd5 {[%clk 0:03:01]}  cxd5 {[%clk 0:02:58]} 4. Bb5+ {[%clk 0:02:59]}  Nc6 {[%clk 0:02:57]} 5. O-O {[%clk 0:02:59]}  Bg4 {[%clk 0:02:55]} 6. h3 {[%clk 0:02:58]}  Bxf3 {[%clk 0:02:51]} 7. Qxf3 {[%clk 0:02:58]}  e6 {[%clk 0:02:51]} 8. Re1 {[%clk 0:02:56]}  Nf6 {[%clk 0:02:50]} 9. c4 {[%clk 0:02:53]}  Be7 {[%clk 0:02:47]} 10. Nc3 {[%clk 0:02:43]}  O-O {[%clk 0:02:43]} 11. d3 {[%clk 0:02:42]}  Nd4 {[%clk 0:02:39]} 12. Qd1 {[%clk 0:02:40]}  Nxb5 {[%clk 0:02:37]} 13. cxb5 {[%clk 0:02:39]}  Qb6 {[%clk 0:02:27]} 14. a4 {[%clk 0:02:34]}  Bc5 {[%clk 0:02:24]} 15. Re2 {[%clk 0:02:29]}  Rac8 {[%clk 0:01:52]} 16. a5 {[%clk 0:02:27]}  Qc7 {[%clk 0:01:49]} 17. Bg5 {[%clk 0:02:23]}  Nd7 {[%clk 0:01:46]} 18. Ra4 {[%clk 0:02:22]}  b6 {[%clk 0:01:30]} 19. a6 {[%clk 0:02:11]}  d4 {[%clk 0:01:18]} 20. Ne4 {[%clk 0:02:05]}  Bd6 {[%clk 0:01:05]} 21. Rxd4 {[%clk 0:01:58]}  Be5 {[%clk 0:00:59]} 22. Rc4 {[%clk 0:01:57]}  Qb7 {[%clk 0:00:52]} 23. axb7 {[%clk 0:01:56]}  Rb8 {[%clk 0:00:36]} 24. Be7 {[%clk 0:01:35]}  Rfe8 {[%clk 0:00:35]} 25. Bd6 {[%clk 0:01:35]}  Rxb7 {[%clk 0:00:33]} 26. Bxe5 {[%clk 0:01:33]}  Nxe5 {[%clk 0:00:32]} 27. Nd6 {[%clk 0:01:33]}  Nxc4 {[%clk 0:00:30]} 28. Nxe8 {[%clk 0:01:31]}  Na5 {[%clk 0:00:27]} 29. Qc2 {[%clk 0:01:27]}  Rd7 {[%clk 0:00:14]} 30. Qc8 {[%clk 0:01:26]} 1-0


[Site "https://www.chess.com"]

[Event "Titled Tuesday Blitz May 23 Early 2023"]
[White "Sanchez, Robert"]
[Black "Coelho, Ramyres Santana"]
[WhiteFideId "2034360"]
[BlackFideId "2120690"]
[WhiteElo "1834"]
[BlackElo "1888"]
[Result "0-1"]
[Round "08"]
[TimeControl "180+2"]
[Date "2023.05.23"]
[WhiteClock "0:02:27"]
[BlackClock "0:01:11"]

1. e4 {[%clk 0:03:00]}  c5 {[%clk 0:02:50]} 2. d4 {[%clk 0:03:00]}  cxd4 {[%clk 0:02:50]} 3. c3 {[%clk 0:03:01]}  d3 {[%clk 0:02:51]} 4. Bxd3 {[%clk 0:03:01]}  Nc6 {[%clk 0:02:52]} 5. Nf3 {[%clk 0:03:01]}  d6 {[%clk 0:02:52]} 6. Bc4 {[%clk 0:03:02]}  e6 {[%clk 0:02:52]} 7. O-O {[%clk 0:03:02]}  Nf6 {[%clk 0:02:52]} 8. Qe2 {[%clk 0:03:02]}  Be7 {[%clk 0:02:49]} 9. Rd1 {[%clk 0:03:01]}  Qc7 {[%clk 0:02:49]} 10. Bb3 {[%clk 0:03:01]}  O-O {[%clk 0:02:48]} 11. Na3 {[%clk 0:03:01]}  Ne5 {[%clk 0:02:48]} 12. Nb5 {[%clk 0:02:57]}  Qb8 {[%clk 0:02:42]} 13. Bf4 {[%clk 0:02:54]}  Nxf3+ {[%clk 0:02:40]} 14. Qxf3 {[%clk 0:02:54]}  e5 {[%clk 0:02:40]} 15. Bg5 {[%clk 0:02:54]}  Rd8 {[%clk 0:02:32]} 16. h3 {[%clk 0:02:52]}  a6 {[%clk 0:02:31]} 17. Na3 {[%clk 0:02:52]}  Be6 {[%clk 0:02:28]} 18. Bxf6 {[%clk 0:02:48]}  Bxf6 {[%clk 0:02:27]} 19. Bxe6 {[%clk 0:02:49]}  fxe6 {[%clk 0:02:28]} 20. Qg4 {[%clk 0:02:48]}  Qc8 {[%clk 0:02:17]} 21. Rd3 {[%clk 0:02:40]}  d5 {[%clk 0:02:06]} 22. Rad1 {[%clk 0:02:36]}  dxe4 {[%clk 0:01:59]} 23. Rxd8+ {[%clk 0:02:35]}  Bxd8 {[%clk 0:01:57]} 24. Qxe4 {[%clk 0:02:35]}  Bf6 {[%clk 0:01:49]} 25. Nc4 {[%clk 0:02:34]}  Qc6 {[%clk 0:01:30]} 26. Qxc6 {[%clk 0:02:28]}  bxc6 {[%clk 0:01:31]} 27. Rd6 {[%clk 0:02:28]}  Rd8 {[%clk 0:01:12]} 28. Rxd8+ {[%clk 0:02:27]}  Bxd8 {[%clk 0:01:11]} 29. Nxe5 {[%clk 0:02:27]} 0-1


[Site "https://www.chess.com"]

[Event "Titled Tuesday Blitz May 23 Early 2023"]
[White "Castellanos Hernandez, Emilio Au"]
[Black "Piesik, Piotr"]
[WhiteFideId "5114179"]
[BlackFideId "1136194"]
[WhiteElo "2037"]
[BlackElo "2299"]
[Result "0-1"]
[Round "08"]
[TimeControl "180+2"]
[Date "2023.05.23"]
[WhiteClock "0:01:50"]
[BlackClock "0:02:01"]

1. e4 {[%clk 0:03:00]}  g6 {[%clk 0:02:59]} 2. d4 {[%clk 0:03:00]}  Bg7 {[%clk 0:02:59]} 3. Nc3 {[%clk 0:03:00]}  c6 {[%clk 0:02:59]} 4. Bf4 {[%clk 0:02:55]}  d5 {[%clk 0:02:56]} 5. exd5 {[%clk 0:02:50]}  cxd5 {[%clk 0:02:57]} 6. h4 {[%clk 0:02:44]}  h5 {[%clk 0:02:56]} 7. Nf3 {[%clk 0:02:34]}  Bg4 {[%clk 0:02:54]} 8. Qd2 {[%clk 0:02:29]}  Bxf3 {[%clk 0:02:53]} 9. gxf3 {[%clk 0:02:27]}  Nc6 {[%clk 0:02:53]} 10. Bb5 {[%clk 0:02:26]}  Nh6 {[%clk 0:02:44]} 11. O-O-O {[%clk 0:02:21]}  Nf5 {[%clk 0:02:43]} 12. Be3 {[%clk 0:02:22]}  Rc8 {[%clk 0:02:39]} 13. Ne2 {[%clk 0:02:18]}  Qb6 {[%clk 0:02:35]} 14. Bxc6+ {[%clk 0:02:17]}  Rxc6 {[%clk 0:02:34]} 15. Kb1 {[%clk 0:02:18]}  e6 {[%clk 0:02:27]} 16. Nf4 {[%clk 0:02:15]}  Bf6 {[%clk 0:02:13]} 17. c3 {[%clk 0:01:56]}  Nxh4 {[%clk 0:02:01]} 18. Rde1 {[%clk 0:01:50]} 0-1


[Site "https://www.chess.com"]

[Event "Titled Tuesday Blitz May 23 Early 2023"]
[White "MANOJ_MISHRA123"]
[Black "Mayaud, Raphael"]
[BlackFideId "627151"]
[WhiteElo "2218"]
[BlackElo "2191"]
[Result "1-0"]
[Round "08"]
[TimeControl "180+2"]
[Date "2023.05.23"]
[WhiteClock "0:00:15"]
[BlackClock "0:00:00"]

1. d4 {[%clk 0:03:00]}  d5 {[%clk 0:02:57]} 2. Bf4 {[%clk 0:02:56]}  Nf6 {[%clk 0:02:55]} 3. e3 {[%clk 0:02:56]}  c5 {[%clk 0:02:55]} 4. c3 {[%clk 0:02:54]}  Qb6 {[%clk 0:02:54]} 5. Qb3 {[%clk 0:02:51]}  c4 {[%clk 0:02:47]} 6. Qc2 {[%clk 0:02:51]}  Nc6 {[%clk 0:02:39]} 7. Nd2 {[%clk 0:02:49]}  g6 {[%clk 0:02:36]} 8. f3 {[%clk 0:02:44]}  Bg7 {[%clk 0:02:33]} 9. e4 {[%clk 0:02:42]}  Nh5 {[%clk 0:02:31]} 10. Be3 {[%clk 0:02:38]}  dxe4 {[%clk 0:02:08]} 11. Nxc4 {[%clk 0:02:22]}  Qc7 {[%clk 0:02:01]} 12. fxe4 {[%clk 0:02:21]}  O-O {[%clk 0:01:47]} 13. Nf3 {[%clk 0:02:10]}  Bg4 {[%clk 0:01:24]} 14. Be2 {[%clk 0:02:07]}  Nf4 {[%clk 0:01:24]} 15. O-O {[%clk 0:01:58]}  Nxe2+ {[%clk 0:01:24]} 16. Qxe2 {[%clk 0:01:59]}  e5 {[%clk 0:01:22]} 17. d5 {[%clk 0:01:52]}  Na5 {[%clk 0:01:22]} 18. Nxa5 {[%clk 0:01:49]}  Qxa5 {[%clk 0:01:22]} 19. h3 {[%clk 0:01:48]}  Bd7 {[%clk 0:01:16]} 20. a4 {[%clk 0:01:45]}  f5 {[%clk 0:01:13]} 21. b4 {[%clk 0:01:35]}  Qc7 {[%clk 0:01:12]} 22. Bc5 {[%clk 0:01:33]}  Rfc8 {[%clk 0:01:10]} 23. d6 {[%clk 0:01:29]}  Qc6 {[%clk 0:01:08]} 24. Qc4+ {[%clk 0:01:23]}  Kh8 {[%clk 0:01:07]} 25. Ng5 {[%clk 0:01:21]}  h6 {[%clk 0:00:52]} 26. Nf7+ {[%clk 0:01:00]}  Kh7 {[%clk 0:00:51]} 27. exf5 {[%clk 0:00:59]}  b6 {[%clk 0:00:16]} 28. Qg4 {[%clk 0:00:45]}  gxf5 {[%clk 0:00:09]} 29. Qh5 {[%clk 0:00:37]}  bxc5 {[%clk 0:00:08]} 30. b5 {[%clk 0:00:23]}  Qd5 {[%clk 0:00:08]} 31. Rad1 {[%clk 0:00:20]}  Qe6 {[%clk 0:00:07]} 32. Ng5+ {[%clk 0:00:20]}  Kg8 {[%clk 0:00:07]} 33. Nxe6 {[%clk 0:00:21]}  Bxe6 {[%clk 0:00:08]} 34. d7 {[%clk 0:00:20]}  Rd8 {[%clk 0:00:08]} 35. Qg6 {[%clk 0:00:20]}  Bxd7 {[%clk 0:00:03]} 36. Rxd7 {[%clk 0:00:18]}  Rxd7 {[%clk 0:00:03]} 37. Qe6+ {[%clk 0:00:18]}  Rf7 {[%clk 0:00:03]} 38. Rxf5 {[%clk 0:00:18]}  Rf8 {[%clk 0:00:04]} 39. Rxf7 {[%clk 0:00:15]}  Rxf7 {[%clk 0:00:00]} 40. Qd5 {[%clk 0:00:15]} 1-0


[Site "https://www.chess.com"]